fUSD/lending_fUSD_20260611
["ID","MTS","AMOUNT","RATE_DAILY","PERIOD"]
[424752512,1781124665000,-499.285744,0.00032877,7]
[424752522,1781124665000,-291.990674,0.00032877,7]
[424752514,1781124665000,-3057.516566,0.00032877,7]
[424752513,1781124665000,-291.990674,0.00032877,7]
[424752531,1781124665000,-291.990674,0.00032877,7]
[424752515,1781124665000,-499.285744,0.00032877,7]
[424752521,1781124665000,-499.285744,0.00032877,7]
[424752517,1781124665000,-3057.516576,0.00032877,7]
[424752528,1781124665000,-291.990674,0.00032877,7]
[424752529,1781124665000,-499.285744,0.00032877,7]
[424752530,1781124665000,-365.182293,0.00032877,7]
[424752524,1781124665000,-365.182293,0.00032877,7]
[424752525,1781124665000,-291.990674,0.00032877,7]
[424752534,1781124665000,-291.990674,0.00032877,7]
[424752516,1781124665000,-291.990674,0.00032877,7]
[424752551,1781124665000,-365.182293,0.00032877,7]
[424752547,1781124665000,-365.182293,0.00032877,7]
[424752556,1781124665000,-159.239145,0.00032877,7]
[424752579,1781124665000,-151.0,0.00032877,7]
[424752573,1781124665000,-159.239145,0.00032877,7]
[424752577,1781124665000,-1869.819469,0.00032877,7]
[424752583,1781124665000,-159.239145,0.00032877,7]
[424752581,1781124665000,-1031.41,0.00028033,30]
[424752582,1781124665000,-457.938942,0.00032877,7]
[424752585,1781124665000,-151.0,0.00032877,7]
[424752586,1781124665000,-151.0,0.00032877,7]
[424752569,1781124665000,-159.239145,0.00032877,7]
[424752589,1781124665000,-321.629469,0.00032877,7]
[424752588,1781124665000,-159.239145,0.00032877,7]
[424752590,1781124665000,-151.0,0.00032877,7]
[424752593,1781124665000,-151.0,0.00032877,7]
[424752591,1781124665000,-151.0,0.00032877,7]
[424752592,1781124665000,-1869.819469,0.00032877,7]
[424752594,1781124665000,-159.239145,0.00032877,7]
[424752595,1781124665000,-95.51987473,0.00032877,7]
[424752549,1781124665000,-159.239145,0.00032877,7]
[424752587,1781124665000,-1869.819469,0.00032877,7]
[424752575,1781124665000,-321.629469,0.00032877,7]
[424752584,1781124665000,-321.629469,0.00032877,7]
[424752580,1781124665000,-1411.880527,0.00032877,7]
[424752554,1781124665000,-159.239145,0.00032877,7]
[424752578,1781124665000,-151.0,0.00032877,7]
[424752557,1781124665000,-365.182293,0.00032877,7]
[424752558,1781124665000,-159.239145,0.00032877,7]
[424752563,1781124665000,-159.239145,0.00032877,7]
[424752565,1781124665000,-159.239145,0.00032877,7]
[424752568,1781124665000,-1869.819469,0.00032877,7]
[424752562,1781124665000,-365.182293,0.00032877,7]
[424752566,1781124665000,-1869.819469,0.00032877,7]
[424752559,1781124665000,-365.182293,0.00032877,7]
[424752555,1781124665000,-365.182293,0.00032877,7]
[424752564,1781124665000,-1869.819469,0.00032877,7]
[424752574,1781124665000,-1869.819469,0.00032877,7]
[424752560,1781124665000,-365.182293,0.00032877,7]
[424752567,1781124665000,-159.239145,0.00032877,7]
[424752570,1781124665000,-1869.819469,0.00032877,7]
[424752576,1781124665000,-159.239145,0.00032877,7]
[424752571,1781124665000,-159.239145,0.00032877,7]
[424752572,1781124665000,-1869.819469,0.00032877,7]
[424752561,1781124665000,-159.239145,0.00032877,7]
[424752599,1781124666000,-478.41803999,0.00027397,10]
[424752597,1781124666000,-13709.17047854,0.00027397,10]
[424752596,1781124666000,-829.94700734,0.00027397,10]
[424752598,1781124666000,-765.98205054,0.00027397,10]
[424752601,1781124666000,-333.23542082,0.000149,2]
[424752600,1781124666000,-3300.64638324,0.00027397,10]
[424752605,1781125618000,-63.66313728,8.24e-05,2]
[424752604,1781125618000,-252.5368803,8.116e-05,2]
[424752603,1781125618000,-150.0,7.993e-05,2]
[424752616,1781125832000,-198.39695554,8.24e-05,2]
[424752618,1781125832000,-2000.0,8.424e-05,2]
[424752623,1781125832000,-502.32,8.575e-05,2]
[424752617,1781125832000,-150.0,8.321e-05,2]
[424752615,1781125832000,-155.7604773,8.24e-05,2]
[424752619,1781125832000,-14102.46942582,8.494e-05,2]
[424752620,1781125832000,-6775.42776994,8.494e-05,2]
[424752626,1781125832000,-250.0,8.792e-05,2]
[424752627,1781125832000,-213.53092844,8.799e-05,2]
[424752621,1781125832000,-1728.13280424,8.494e-05,2]
[424752635,1781125832000,-1000.0,9.039e-05,2]
[424752625,1781125832000,-193.33491251,8.792e-05,2]
[424752622,1781125832000,-2348.35,8.566e-05,2]
[424752636,1781125832000,-2578.02330225,9.04e-05,2]
[424752630,1781125832000,-500.0,8.925e-05,2]
[424752632,1781125832000,-565.4578127,8.95e-05,2]
[424752634,1781125832000,-876.53823791,9.031e-05,2]
[424752631,1781125832000,-500.1525,8.94e-05,2]
[424752628,1781125832000,-191.98190766,8.799e-05,2]
[424752629,1781125832000,-879.26,8.831e-05,2]
[424752624,1781125832000,-565.4578127,8.575e-05,2]
[424752633,1781125832000,-309.01176209,9.031e-05,2]
[424752675,1781125838000,-500.0,9.325e-05,2]
[424752678,1781125838000,-500.0,9.325e-05,2]
[424752679,1781125838000,-500.0,9.325e-05,2]
[424752672,1781125838000,-500.0,9.325e-05,2]
[424752674,1781125838000,-500.0,9.325e-05,2]
[424752671,1781125838000,-500.0,9.325e-05,2]
[424752682,1781125838000,-230.9383663,9.325e-05,2]
[424752677,1781125838000,-500.0,9.325e-05,2]
[424752676,1781125838000,-500.0,9.325e-05,2]
[424752681,1781125838000,-500.0,9.325e-05,2]
[424752680,1781125838000,-500.0,9.325e-05,2]
[424752683,1781125838000,-500.0,9.325e-05,2]
[424752685,1781125838000,-500.0,9.325e-05,2]
[424752684,1781125838000,-500.0,9.325e-05,2]
[424752673,1781125838000,-500.0,9.325e-05,2]
[424752669,1781125838000,-500.0,9.325e-05,2]
[424752665,1781125838000,-150.0,9.325e-05,2]
[424752667,1781125838000,-218.83171562,9.325e-05,2]
[424752687,1781125838000,-500.0,9.325e-05,2]
[424752657,1781125838000,-200.0,9.09e-05,2]
[424752658,1781125838000,-150.0,9.109e-05,2]
[424752655,1781125838000,-2002.009916,9.041e-05,2]
[424752656,1781125838000,-316.19835926,9.064e-05,2]
[424752654,1781125838000,-14464.31833983,9.04e-05,2]
[424752670,1781125838000,-500.0,9.325e-05,2]
[424752659,1781125838000,-1000.0,9.11e-05,2]
[424752660,1781125838000,-3609.005,9.11e-05,2]
[424752661,1781125838000,-158.209,9.11e-05,2]
[424752664,1781125838000,-150.0,9.325e-05,2]
[424752663,1781125838000,-500.0,9.325e-05,2]
[424752668,1781125838000,-500.0,9.325e-05,2]
[424752666,1781125838000,-150.0,9.325e-05,2]
[424752662,1781125838000,-117582.91267495,9.111e-05,2]
[424752688,1781125838000,-500.0,9.325e-05,2]
[424752711,1781125838000,-215.92376884,9.704e-05,2]
[424752689,1781125838000,-500.0,9.325e-05,2]
[424752742,1781125838000,-2510.47,0.00010027,2]
[424752715,1781125838000,-5300.0,9.8e-05,3]
[424752713,1781125838000,-160.0,9.704e-05,2]
[424752722,1781125838000,-10700.0,9.9e-05,3]
[424752724,1781125838000,-33274.8187,0.0001,2]
[424752728,1781125838000,-163.65,0.0001,2]
[424752718,1781125838000,-166.78,9.823e-05,2]
[424752726,1781125838000,-2000.0,0.0001,2]
[424752720,1781125838000,-500.0,9.873e-05,2]
[424752738,1781125838000,-226.82002567,0.0001,2]
[424752733,1781125838000,-190.83726697,0.0001,2]
[424752735,1781125838000,-3234.51554616,0.0001,2]
[424752739,1781125838000,-16100.0,0.0001,3]
[424752686,1781125838000,-500.0,9.325e-05,2]
[424752731,1781125838000,-190.83726697,0.0001,2]
[424752704,1781125838000,-299.99,9.67e-05,2]
[424752740,1781125838000,-255.0,0.0001002,2]
[424752709,1781125838000,-9999.99,9.67e-05,2]
[424752702,1781125838000,-1198.69,9.67e-05,2]
[424752693,1781125838000,-500.0,9.325e-05,2]
[424752691,1781125838000,-500.0,9.325e-05,2]
[424752694,1781125838000,-500.0,9.325e-05,2]
[424752692,1781125838000,-500.0,9.325e-05,2]
[424752696,1781125838000,-500.0,9.325e-05,2]
[424752697,1781125838000,-380.0,9.325e-05,2]
[424752690,1781125838000,-500.0,9.325e-05,2]
[424752695,1781125838000,-500.0,9.325e-05,2]
[424752699,1781125838000,-2000.0,9.477e-05,2]
[424752698,1781125838000,-565.4578127,9.325e-05,2]
[424752700,1781125838000,-500.0,9.599e-05,2]
[424752703,1781125838000,-150.99,9.67e-05,2]
[424752707,1781125838000,-7664.71,9.67e-05,2]
[424752701,1781125838000,-502.32,9.647e-05,2]
[424752829,1781125839000,-166.66,0.00011178,2]
[424752816,1781125839000,-49474.18506095,0.00011099,2]
[424752830,1781125839000,-152.5,0.00011233,2]
[424752823,1781125839000,-81152.18240106,0.00011099,2]
[424752814,1781125839000,-49474.18506095,0.00011099,2]
[424752819,1781125839000,-81152.18240114,0.00011099,2]
[424752808,1781125839000,-20377.03518995,0.00011076,2]
[424752793,1781125839000,-166.66,0.00010959,2]
[424752800,1781125839000,-1138.4291254,0.00011,2]
[424752825,1781125839000,-81152.18240106,0.00011117,2]
[424752827,1781125839000,-812.2971195,0.00011132,2]
[424752831,1781125839000,-500.0,0.00011243,2]
[424752821,1781125839000,-81152.18240106,0.00011099,2]
[424752841,1781125839000,-166.66,0.00011507,2]
[424752838,1781125839000,-166.78,0.00011444,2]
[424752839,1781125839000,-812.2971195,0.00011466,2]
[424752834,1781125839000,-49474.18506095,0.00011331,2]
[424752832,1781125839000,-166.66,0.00011288,2]
[424752833,1781125839000,-812.2971195,0.00011299,2]
[424752837,1781125839000,-812.2971195,0.00011422,2]
[424752835,1781125839000,-812.2971195,0.00011368,2]
[424752840,1781125839000,-812.2971195,0.00011506,2]
[424752802,1781125839000,-433.0,0.00011022,2]
[424752812,1781125839000,-49474.18506099,0.00011099,2]
[424752791,1781125839000,-500.0,0.00010958,2]
[424752773,1781125839000,-20377.03519002,0.000109,2]
[424752804,1781125839000,-2510.47,0.0001103,2]
[424752746,1781125839000,-500.0,0.00010147,2]
[424752744,1781125839000,-255.9291826,0.0001008,7]
[424752748,1781125839000,-2958.31414273,0.00010175,2]
[424752750,1781125839000,-2510.47,0.00010278,2]
[424752752,1781125839000,-166.78,0.00010363,2]
[424752757,1781125839000,-2510.47,0.00010529,2]
[424752760,1781125839000,-2000.0,0.0001053,2]
[424752763,1781125839000,-500.0,0.00010695,2]
[424752836,1781125839000,-166.66,0.00011397,2]
[424752771,1781125839000,-923.43562207,0.00010835,2]
[424752767,1781125839000,-502.32,0.00010719,2]
[424752781,1781125839000,-500.0,0.00010958,2]
[424752785,1781125839000,-500.0,0.00010958,2]
[424752777,1781125839000,-166.78,0.00010903,2]
[424752783,1781125839000,-500.0,0.00010958,2]
[424752769,1781125839000,-2510.47,0.00010779,2]
[424752787,1781125839000,-500.0,0.00010958,2]
[424752775,1781125839000,-20377.03518995,0.000109,2]
[424752779,1781125839000,-500.0,0.00010958,2]
[424752806,1781125839000,-166.66,0.00011068,2]
[424752798,1781125839000,-500.0,0.00010969,2]
[424752810,1781125839000,-500.0,0.00011098,2]
[424752795,1781125839000,-150.0,0.00010959,2]
[424752789,1781125839000,-500.0,0.00010958,2]
[424752843,1781125839000,-359.20564,0.00011512,2]
[424752755,1781125839000,-500.0,0.00010421,2]
[424752854,1781125839000,-812.2971195,0.00011687,2]
[424752875,1781125839000,-500.0,0.00011929,2]
[424752874,1781125839000,-626.04001537,0.00011929,2]
[424752876,1781125839000,-500.0,0.00011929,2]
[424752877,1781125839000,-500.0,0.00011929,2]
[424752879,1781125839000,-500.0,0.00011929,2]
[424752878,1781125839000,-500.0,0.00011929,2]
[424752880,1781125839000,-500.0,0.00011929,2]
[424752881,1781125839000,-500.0,0.00011929,2]
[424752886,1781125839000,-500.0,0.00011929,2]
[424752882,1781125839000,-500.0,0.00011929,2]
[424752883,1781125839000,-500.0,0.00011929,2]
[424752885,1781125839000,-542.14662573,0.00011929,2]
[424752884,1781125839000,-500.0,0.00011929,2]
[424752887,1781125839000,-500.0,0.00011929,2]
[424752897,1781125839000,-500.0,0.00011929,2]
[424752889,1781125839000,-500.0,0.00011929,2]
[424752896,1781125839000,-500.0,0.00011929,2]
[424752894,1781125839000,-500.0,0.00011929,2]
[424752895,1781125839000,-500.0,0.00011929,2]
[424752892,1781125839000,-500.0,0.00011929,2]
[424752893,1781125839000,-500.0,0.00011929,2]
[424752891,1781125839000,-500.0,0.00011929,2]
[424752888,1781125839000,-500.0,0.00011929,2]
[424752873,1781125839000,-500.0,0.00011929,2]
[424752872,1781125839000,-49474.18506095,0.00011926,2]
[424752890,1781125839000,-500.0,0.00011929,2]
[424752868,1781125839000,-812.2971195,0.00011861,2]
[424752871,1781125839000,-812.2971195,0.00011917,2]
[424752853,1781125839000,-812.2971195,0.00011661,2]
[424752852,1781125839000,-812.2971195,0.00011634,2]
[424752847,1781125839000,-812.2971195,0.00011542,2]
[424752844,1781125839000,-399.80183,0.00011512,2]
[424752848,1781125839000,-812.2971195,0.00011575,2]
[424752846,1781125839000,-500.0,0.00011517,2]
[424752842,1781125839000,-362.079489,0.00011512,2]
[424752845,1781125839000,-247.995884,0.00011512,2]
[424752850,1781125839000,-2000.0,0.00011583,2]
[424752856,1781125839000,-812.2971195,0.00011711,2]
[424752855,1781125839000,-442.935278,0.00011709,2]
[424752851,1781125839000,-812.2971195,0.00011605,2]
[424752857,1781125839000,-812.2971195,0.00011735,2]
[424752870,1781125839000,-812.2971195,0.00011899,2]
[424752864,1781125839000,-812.2971195,0.00011801,2]
[424752869,1781125839000,-812.2971195,0.0001188,2]
[424752866,1781125839000,-20377.03518995,0.00011841,2]
[424752862,1781125839000,-502.32,0.0001179,2]
[424752858,1781125839000,-81152.18240106,0.00011747,2]
[424752867,1781125839000,-812.2971195,0.00011842,2]
[424752865,1781125839000,-812.2971195,0.00011822,2]
[424752859,1781125839000,-812.2971195,0.00011758,2]
[424752861,1781125839000,-175.0,0.0001179,2]
[424752860,1781125839000,-812.2971195,0.0001178,2]
[424752863,1781125839000,-541.3104,0.00011791,2]
[424752925,1781125840000,-812.2971195,0.00011934,2]
[424752911,1781125840000,-500.0,0.00011929,2]
[424752917,1781125840000,-500.0,0.00011929,2]
[424752920,1781125840000,-500.0,0.00011929,2]
[424752922,1781125840000,-500.0,0.00011929,2]
[424752928,1781125840000,-812.2971195,0.00011985,2]
[424752930,1781125840000,-812.2971195,0.00012017,2]
[424752923,1781125840000,-500.0,0.00011929,2]
[424752924,1781125840000,-500.0,0.00011929,2]
[424752921,1781125840000,-500.0,0.00011929,2]
[424752919,1781125840000,-500.0,0.00011929,2]
[424752926,1781125840000,-812.2971195,0.00011952,2]
[424752929,1781125840000,-812.2971195,0.00012001,2]
[424752933,1781125840000,-4194.35,0.00012055,2]
[424752927,1781125840000,-812.2971195,0.00011969,2]
[424752916,1781125840000,-500.0,0.00011929,2]
[424752906,1781125840000,-500.0,0.00011929,2]
[424752913,1781125840000,-500.0,0.00011929,2]
[424752934,1781125840000,-812.2971195,0.00012064,2]
[424752898,1781125840000,-500.0,0.00011929,2]
[424752900,1781125840000,-500.0,0.00011929,2]
[424752899,1781125840000,-500.0,0.00011929,2]
[424752902,1781125840000,-500.0,0.00011929,2]
[424752903,1781125840000,-500.0,0.00011929,2]
[424752907,1781125840000,-500.0,0.00011929,2]
[424752908,1781125840000,-500.0,0.00011929,2]
[424752905,1781125840000,-500.0,0.00011929,2]
[424752904,1781125840000,-500.0,0.00011929,2]
[424752909,1781125840000,-500.0,0.00011929,2]
[424752912,1781125840000,-500.0,0.00011929,2]
[424752914,1781125840000,-500.0,0.00011929,2]
[424752918,1781125840000,-500.0,0.00011929,2]
[424752910,1781125840000,-500.0,0.00011929,2]
[424752915,1781125840000,-500.0,0.00011929,2]
[424752901,1781125840000,-500.0,0.00011929,2]
[424752931,1781125840000,-812.2971195,0.00012033,2]
[424752940,1781125840000,-812.2971195,0.00012136,2]
[424752957,1781125840000,-81152.18240106,0.00012378,2]
[424752961,1781125840000,-20377.03518995,0.00012606,2]
[424752956,1781125840000,-437.6520897,0.00012368,2]
[424752958,1781125840000,-311.93524405,0.000125,2]
[424752960,1781125840000,-49474.18506095,0.00012521,2]
[424752963,1781125840000,-1185.55,0.00012643,2]
[424752959,1781125840000,-500.0,0.0001252,2]
[424752962,1781125840000,-2000.0,0.00012636,2]
[424752964,1781125840000,-266.947601,0.00012727,2]
[424752966,1781125840000,-302.320199,0.00012792,2]
[424752967,1781125840000,-194.245024,0.00012849,2]
[424752969,1781125840000,-21500.0,0.000129,4]
[424752968,1781125840000,-502.32,0.00012862,2]
[424752970,1781125840000,-81152.18240106,0.00013008,2]
[424752936,1781125840000,-812.2971195,0.00012093,2]
[424752955,1781125840000,-216.44,0.00012329,2]
[424752953,1781125840000,-812.2971195,0.00012291,2]
[424752965,1781125840000,-170.150039,0.0001279,2]
[424752949,1781125840000,-812.2971195,0.00012242,2]
[424752932,1781125840000,-812.2971195,0.00012048,2]
[424752954,1781125840000,-812.2971195,0.00012303,2]
[424752939,1781125840000,-736.0,0.00012124,2]
[424752937,1781125840000,-812.2971195,0.00012108,2]
[424752941,1781125840000,-812.2971195,0.0001215,2]
[424752935,1781125840000,-812.2971195,0.00012079,2]
[424752944,1781125840000,-812.2971195,0.0001219,2]
[424752943,1781125840000,-812.2971195,0.00012177,2]
[424752938,1781125840000,-812.2971195,0.00012122,2]
[424752942,1781125840000,-812.2971195,0.00012164,2]
[424752946,1781125840000,-812.2971195,0.00012216,2]
[424752952,1781125840000,-812.2971195,0.00012279,2]
[424752948,1781125840000,-812.2971195,0.00012229,2]
[424752951,1781125840000,-812.2971195,0.00012267,2]
[424752950,1781125840000,-812.2971195,0.00012255,2]
[424752945,1781125840000,-812.2971195,0.00012203,2]
[424752947,1781125840000,-3234.51554614,0.00012224,2]
[424753002,1781125841000,-150.0,0.00013618,2]
[424753011,1781125841000,-186.72563653,0.00013654,2]
[424753009,1781125841000,-186.72563653,0.00013639,2]
[424753004,1781125841000,-150.0,0.00013624,2]
[424753008,1781125841000,-81152.18240106,0.00013639,2]
[424753007,1781125841000,-150.0,0.00013638,2]
[424753012,1781125841000,-150.0,0.00013654,2]
[424753014,1781125841000,-186.72563653,0.00013669,2]
[424753006,1781125841000,-186.72563653,0.00013624,2]
[424753000,1781125841000,-186.72563653,0.00013609,2]
[424753013,1781125841000,-150.0,0.00013669,2]
[424753010,1781125841000,-150.0,0.0001365,2]
[424753025,1781125841000,-500.0,0.00013698,2]
[424753018,1781125841000,-150.0,0.0001369,2]
[424753020,1781125841000,-500.0,0.00013698,2]
[424753021,1781125841000,-500.0,0.00013698,2]
[424753017,1781125841000,-1500.0,0.00013688,2]
[424753022,1781125841000,-500.0,0.00013698,2]
[424753019,1781125841000,-500.0,0.00013697,2]
[424753023,1781125841000,-500.0,0.00013698,2]
[424753016,1781125841000,-186.72563653,0.00013684,2]
[424753024,1781125841000,-500.0,0.00013698,2]
[424753037,1781125841000,-500.0,0.00013698,2]
[424753001,1781125841000,-150.0,0.00013609,2]
[424753015,1781125841000,-150.0,0.00013683,2]
[424752996,1781125841000,-186.72563653,0.00013578,2]
[424752979,1781125841000,-150.0,0.00013488,2]
[424752998,1781125841000,-150.0,0.00013599,2]
[424752971,1781125841000,-49474.18506095,0.00013116,2]
[424752973,1781125841000,-20377.03518995,0.00013371,2]
[424752977,1781125841000,-150.0,0.00013488,2]
[424752974,1781125841000,-150.0,0.00013488,2]
[424752976,1781125841000,-150.0,0.00013488,2]
[424752972,1781125841000,-1252.0,0.00013336,2]
[424752975,1781125841000,-150.0,0.00013488,2]
[424752978,1781125841000,-150.0,0.00013488,2]
[424752980,1781125841000,-150.0,0.00013488,2]
[424752990,1781125841000,-150.0,0.00013543,2]
[424752982,1781125841000,-186.72563653,0.00013488,2]
[424752981,1781125841000,-150.0,0.00013488,2]
[424752983,1781125841000,-203.80794025,0.00013488,2]
[424752986,1781125841000,-186.72563653,0.00013518,2]
[424752988,1781125841000,-150.0,0.00013533,2]
[424752984,1781125841000,-150.0,0.00013488,2]
[424752985,1781125841000,-186.72563653,0.00013503,2]
[424752989,1781125841000,-186.72563653,0.00013533,2]
[424752987,1781125841000,-150.0,0.00013528,2]
[424752991,1781125841000,-186.72563653,0.00013548,2]
[424752994,1781125841000,-150.0,0.00013569,2]
[424752997,1781125841000,-186.72563653,0.00013594,2]
[424752993,1781125841000,-186.72563653,0.00013563,2]
[424752995,1781125841000,-150.0,0.00013578,2]
[424753038,1781125841000,-500.0,0.00013698,2]
[424752999,1781125841000,-10000.0,0.000136,2]
[424753027,1781125841000,-500.0,0.00013698,2]
[424752992,1781125841000,-150.0,0.00013553,2]
[424753026,1781125841000,-500.0,0.00013698,2]
[424753061,1781125841000,-417.45761275,0.00013698,2]
[424753060,1781125841000,-593.17756439,0.00013698,2]
[424753057,1781125841000,-500.0,0.00013698,2]
[424753058,1781125841000,-500.0,0.00013698,2]
[424753065,1781125841000,-500.0,0.00013698,2]
[424753066,1781125841000,-500.0,0.00013698,2]
[424753068,1781125841000,-500.0,0.00013698,2]
[424753075,1781125841000,-500.0,0.00013698,2]
[424753071,1781125841000,-500.0,0.00013698,2]
[424753070,1781125841000,-500.0,0.00013698,2]
[424753073,1781125841000,-500.0,0.00013698,2]
[424753072,1781125841000,-500.0,0.00013698,2]
[424753077,1781125841000,-500.0,0.00013698,2]
[424753067,1781125841000,-500.0,0.00013698,2]
[424753076,1781125841000,-500.0,0.00013698,2]
[424753069,1781125841000,-500.0,0.00013698,2]
[424753079,1781125841000,-500.0,0.00013698,2]
[424753080,1781125841000,-500.0,0.00013698,2]
[424753078,1781125841000,-517.7,0.00013698,2]
[424753081,1781125841000,-500.0,0.00013698,2]
[424753084,1781125841000,-500.0,0.00013698,2]
[424753085,1781125841000,-500.0,0.00013698,2]
[424753082,1781125841000,-500.0,0.00013698,2]
[424753083,1781125841000,-500.0,0.00013698,2]
[424753028,1781125841000,-500.0,0.00013698,2]
[424753062,1781125841000,-590.47777373,0.00013698,2]
[424753059,1781125841000,-500.0,0.00013698,2]
[424753074,1781125841000,-500.0,0.00013698,2]
[424753054,1781125841000,-500.0,0.00013698,2]
[424753055,1781125841000,-500.0,0.00013698,2]
[424753029,1781125841000,-500.0,0.00013698,2]
[424753036,1781125841000,-500.0,0.00013698,2]
[424753033,1781125841000,-500.0,0.00013698,2]
[424753031,1781125841000,-500.0,0.00013698,2]
[424753035,1781125841000,-500.0,0.00013698,2]
[424753032,1781125841000,-500.0,0.00013698,2]
[424753034,1781125841000,-500.0,0.00013698,2]
[424753042,1781125841000,-500.0,0.00013698,2]
[424753041,1781125841000,-500.0,0.00013698,2]
[424753039,1781125841000,-500.0,0.00013698,2]
[424753040,1781125841000,-500.0,0.00013698,2]
[424753049,1781125841000,-500.0,0.00013698,2]
[424753030,1781125841000,-500.0,0.00013698,2]
[424753063,1781125841000,-276.98837881,0.00013698,2]
[424753048,1781125841000,-500.0,0.00013698,2]
[424753064,1781125841000,-500.0,0.00013698,2]
[424753056,1781125841000,-500.0,0.00013698,2]
[424753053,1781125841000,-500.0,0.00013698,2]
[424753052,1781125841000,-500.0,0.00013698,2]
[424753047,1781125841000,-500.0,0.00013698,2]
[424753045,1781125841000,-500.0,0.00013698,2]
[424753044,1781125841000,-500.0,0.00013698,2]
[424753050,1781125841000,-500.0,0.00013698,2]
[424753051,1781125841000,-500.0,0.00013698,2]
[424753043,1781125841000,-635.41191774,0.00013698,2]
[424753046,1781125841000,-500.0,0.00013698,2]
[424753117,1781125842000,-894.83,0.00013698,2]
[424753136,1781125842000,-500.0,0.00013698,2]
[424753126,1781125842000,-894.83,0.00013698,2]
[424753114,1781125842000,-3402.88,0.00013698,2]
[424753119,1781125842000,-894.83,0.00013698,2]
[424753120,1781125842000,-3402.88,0.00013698,2]
[424753116,1781125842000,-3402.88,0.00013698,2]
[424753124,1781125842000,-894.83,0.00013698,2]
[424753123,1781125842000,-894.83,0.00013698,2]
[424753115,1781125842000,-894.83,0.00013698,2]
[424753125,1781125842000,-3402.88,0.00013698,2]
[424753121,1781125842000,-894.83,0.00013698,2]
[424753135,1781125842000,-500.0,0.00013698,2]
[424753132,1781125842000,-894.83,0.00013698,2]
[424753128,1781125842000,-894.83,0.00013698,2]
[424753127,1781125842000,-894.83,0.00013698,2]
[424753133,1781125842000,-894.83,0.00013698,2]
[424753131,1781125842000,-894.83,0.00013698,2]
[424753130,1781125842000,-894.83,0.00013698,2]
[424753129,1781125842000,-894.83,0.00013698,2]
[424753137,1781125842000,-500.0,0.00013698,2]
[424753139,1781125842000,-500.0,0.00013698,2]
[424753138,1781125842000,-500.0,0.00013698,2]
[424753140,1781125842000,-500.0,0.00013698,2]
[424753142,1781125842000,-500.0,0.00013698,2]
[424753147,1781125842000,-500.0,0.00013698,2]
[424753134,1781125842000,-500.0,0.00013698,2]
[424753122,1781125842000,-894.83,0.00013698,2]
[424753088,1781125842000,-500.0,0.00013698,2]
[424753113,1781125842000,-894.83,0.00013698,2]
[424753148,1781125842000,-500.0,0.00013698,2]
[424753087,1781125842000,-500.0,0.00013698,2]
[424753086,1781125842000,-500.0,0.00013698,2]
[424753089,1781125842000,-500.0,0.00013698,2]
[424753090,1781125842000,-500.0,0.00013698,2]
[424753095,1781125842000,-508.52146778,0.00013698,2]
[424753091,1781125842000,-500.0,0.00013698,2]
[424753094,1781125842000,-395.14050061,0.00013698,2]
[424753092,1781125842000,-500.0,0.00013698,2]
[424753096,1781125842000,-3402.88,0.00013698,2]
[424753098,1781125842000,-3402.88,0.00013698,2]
[424753099,1781125842000,-3402.88,0.00013698,2]
[424753118,1781125842000,-3402.88,0.00013698,2]
[424753097,1781125842000,-3402.88,0.00013698,2]
[424753112,1781125842000,-3402.88,0.00013698,2]
[424753111,1781125842000,-894.83,0.00013698,2]
[424753102,1781125842000,-3402.88,0.00013698,2]